Cogmind - Beta 17 @@@ ROGUE MODE // 2026.08.24 @ 12:42:11 Player: ATOM Result: Destroyed by G-47 Trooper with Particle Gun Performance ------------- Evolutions (2) 1000 Regions Visited (3) 600 Robots Destroyed (33) 165 Value Destroyed (1088) 1088 Prototype IDs (26) 520 Alien Tech Used (0) 0 Bonus (0) 0 TOTAL SCORE: 3373 Bonus ------- None Cogmind --------- Core Integrity 0/550 Matter 300/300 Energy 89/100 System Corruption 10% Temperature Warm (146) Movement Core (400) Ox7 Location -8/Materials Parts ------- > --- POWER (2) -------- (None) > --- PROPULSION (3) --- (None) > --- UTILITY (4) ------ Cryofiber Web Large Storage Unit Utility Shielding Self-contained Transmogrifier > --- WEAPON (2) ------- Mace > --- INVENTORY (15) --- Large Storage Unit Visual Processing Unit Hacking Suite Power Bank Light EM Pulse Cannon Mining Laser Peak State ------------ > --- POWER ------------ Light Ion Engine Enhanced Nuclear Core > --- PROPULSION ------- Wheel Wheel > --- UTILITY ---------- Heat Sink Medium Storage Unit Improved Targeting Computer Self-contained Transmogrifier > --- WEAPON ----------- Precision Beam Rifle Advanced EMP Blaster > --- INVENTORY -------- Light Treads Visual Processing Unit Utility Shielding Hacking Suite Power Bank Precision Beam Rifle Light EM Pulse Cannon Mining Laser Piercing Trap [Rating: 31] Favorites ----------- Power Light Ion Engine Engine Light Ion Engine Power Core Enhanced Nuclear Core Propulsion Wheel Treads Light Treads Wheel Wheel Utility Improved Targeting Computer Device Self-contained Transmogrifier Storage Small Storage Unit Processor Improved Targeting Computer Protection Hardened Light Armor Plating Weapon Shotgun Energy Gun Medium Laser Energy Cannon Light EM Pulse Cannon Ballistic Gun Shotgun Ballistic Cannon Light Cannon Launcher Advanced EMP Blaster Special Weapon Mining Laser Impact Weapon Mace Build | -11 -10 -10 -8 ------- Run | Yrd Mat Sub Mat Slots Evolved 4 | . . . 4 Power 1 | . . . 1 Propulsion 1 | . . . 1 Utility 2 | . . . 2 Weapon . | . . . . Parts Attached 34 | 6 10 6 12 Power 6 | 1 2 2 1 Engine 6 | 1 2 2 1 Core . | . . . . Reactor . | . . . . Propulsion 7 | 2 2 2 1 Treads 2 | 2 . . . Leg . | . . . . Wheel 5 | . 2 2 1 Hover . | . . . . Flight . | . . . . Utility 9 | 1 2 . 6 Device 3 | . . . 3 Storage 3 | 1 1 . 1 Processor 1 | . 1 . . Hackware . | . . . . Protection 2 | . . . 2 Artifact . | . . . . Weapon 12 | 2 4 2 4 Energy Gun 4 | 1 1 . 2 Energy Cannon 1 | . 1 . . Ballistic Gun 3 | 1 1 1 . Ballistic Cannon 1 | . . 1 . Launcher 1 | . . . 1 Special Weapon 1 | . 1 . . Impact Weapon 1 | . . . 1 Slashing Weapon . | . . . . Piercing Weapon . | . . . . Special Melee Weapon . | . . . . Unidentified Prototypes 3 | . . . 3 Corrupted Parts 1 | . . . 1 System Corruption 10 | . . . 10 Parts Lost 12 | . 3 2 7 Power 4 | . 1 1 2 Propulsion 4 | . 1 1 2 Utility 2 | . . . 2 Weapon 2 | . 1 . 1 Highest Loss Streak 7 | . 3 1 7 To Critical Strikes . | . . . . Average Backups 6 | 1 5 7 8 Power . | . 1 . . Propulsion 1 | . 1 1 . Utility 2 | . 1 3 4 Weapon 1 | . . 2 3 Tool/Special . | . . . . Unused Backups 6 | . . . 6 Power . | . . . . Propulsion . | . . . . Utility 4 | . . . 4 Weapon 2 | . . . 2 Tool/Special . | . . . . Average Slot Usage (%) 92 | . 90 99 86 Engine 12 | . 13 13 10 Treads 9 | . 18 . . Wheel 13 | . 1 27 18 Device 3 | . . . 17 Storage 13 | . 14 14 9 Processor 12 | . 13 14 4 Energy Gun 10 | . 18 . 6 Ballistic Gun 8 | . 8 13 1 Ballistic Cannon 2 | . . 5 1 Special Weapon 2 | . . 7 1 Peak Build Rating 31 | 6 11 12 31 Average Rating 11 | 4 7 10 27 On Entrance 7 | . 6 11 12 Avg Prop Armor Cover (%) . | . . . . Naked Turns . | . . . . Heaviest Build 45 | 12 20 21 45 Greatest Support 40 | 40 40 30 40 Greatest Overweight (x) 7 | . . 1 7 Average Overweight (x) . | . . . . Largest Inventory Capacity 15 | 8 10 10 15 Average Capacity 9 | 7 8 10 12 Most Carried 11 | 3 9 10 11 Average Carried 7 | 1 5 8 9 Final Capacity 15 | 8 10 10 15 Final Carried 9 | 3 9 9 6 Transmogrified Parts 4 | . . . 4 Integrity Recovered 82 | . . . 82 Class Distribution -------------------- 100% | Mutant Dominant Class ---------------- Mutant | -10/Materials Mutant | -10/Subcaves Mutant | -8/Materials Resources | -11 -10 -10 -8 ----------- Run | Yrd Mat Sub Mat Matter Collected 871 | 260 177 244 190 Remotely . | . . . . Salvage Created 1108 | . 436 273 399 Parts 59 | . 31 13 15 Haulers Intercepted . | . . . . Recyclers Shooed . | . . . . Parts Field Recycled . | . . . . Retrieved Matter . | . . . . Parts Self-Destructed . | . . . . Prevented . | . . . . Parts Restored . | . . . . Kills | -11 -10 -10 -8 ------- Run | Yrd Mat Sub Mat Combat Hostiles Destroyed 28 | . 13 7 8 Melee 1 | . . . 1 Guns 16 | . 12 2 2 Cannons 5 | . . 5 . AOE 4 | . . . 4 Classes Destroyed 7 | . 5 1 1 Builder 1 | . 1 . . Operator 2 | . 1 . 1 Watcher 2 | . 2 . . Swarmer 6 | . 6 . . Grunt 14 | . 7 . 7 Hunter 1 | . . . 1 Subdweller 7 | . . 7 . Best Kill Streak 6 | . 6 2 2 Combat Bots Only 5 | . 5 2 2 Max Kills in Single Turn 2 | . 2 1 2 Gunslinging 1 | . 1 . . Exploded 2 | . . . 2 Melee 1 | . . . 1 Uniques/NPCs Destroyed . | . . . . Combat | -11 -10 -10 -8 -------- Run | Yrd Mat Sub Mat Hostile Shots Fired 205 | . 71 28 106 Missed 33 | . 12 6 15 Hits 172 | . 59 22 91 Projectile 172 | . 59 22 91 AOE 1 | . . 1 . Critical Strikes 6 | . 2 . 4 Damage Taken 2709 | . 645 559 1505 Core 723 | . 69 95 559 Absorbed by Shields . | . . . . Redirected to Shielding 9 | . . . 9 Core Remaining (%) 67 | 100 . 34 . Volleys Fired 109 | . 48 35 26 Largest 2 | . 2 2 2 Hottest 156 | . 150 156 124 Shots Fired 188 | . 91 59 38 Gun 132 | . 89 23 20 Cannon 31 | . . 21 10 Launcher 8 | . . . 8 Special 17 | . 2 15 . Kinetic 81 | . 35 36 10 Thermal 91 | . 56 15 20 Explosive . | . . . . Electromagnetic 16 | . . 8 8 Robot Hit Streak 20 | . 13 20 13 Robot Miss Streak 4 | . 4 1 2 Penetration Max . | . . . . Secondary Targets 3 | . 2 . 1 Max Gunslinging Chain 1 | . 1 . 1 Shots Hit Robots 129 | . 58 38 33 Core Hits 59 | . 29 17 13 Critical Kills . | . . . . Critical Parts Destroyed 1 | . . . 1 Critical Strikes 5 | . 2 1 2 Burn 3 | . 2 . 1 Destroy 1 | . . 1 . Smash 1 | . . . 1 Melee Attacks 13 | . . . 13 Impact 13 | . . . 13 Slashing . | . . . . Piercing . | . . . . Sneak Attacks . | . . . . Combat Hostiles . | . . . . Follow-up Attacks . | . . . . Damage Inflicted 2432 | . 742 634 1056 Guns 1332 | . 741 327 264 Cannons 406 | . . 283 123 Explosions 487 | . . . 487 Melee 182 | . . . 182 Ramming 1 | . 1 . . Kinetic 938 | . 318 497 123 Thermal 856 | . 423 24 409 Explosive . | . . . . Electromagnetic 455 | . . 113 342 Impact 182 | . . . 182 Slashing . | . . . . Piercing . | . . . . Highest Corruption 10 | . . . 10 Average Corruption 10 | . . . 10 Corruption Purged . | . . . . Corruption Blocked . | . . . . Effects 12 | . . . 12 Message Errors 4 | . . . 4 Matter Fused 2 | . . . 2 Heat Flow Errors 2 | . . . 2 Energy Discharges 1 | . . . 1 Parts Rejected 1 | . . . 1 Data Loss (minor) 1 | . . . 1 Data Loss (major) 1 | . . . 1 Overload Shots . | . . . . Overflow Damage 21 | . . . 21 Projectiles . | . . . . Explosions . | . . . . Melee 21 | . . . 21 Knockbacks 9 | . . 4 5 Impact . | . . . . Kinetic 9 | . . 4 5 Secondary . | . . . . Self-Inflicted Damage 31 | . . . 31 Shots 3 | . . . 3 Rammed 1 | . 1 . . Targets Rammed 1 | . 1 . . Kicked . | . . . . Crushed . | . . . . Highest Temperature 421 | . 204 12 421 Average Temperature 103 | . 53 11 195 Received Heat Transfer 1224 | . 306 72 846 Effects 4 | . . . 4 Shutdowns 1 | . . . 1 Interference 3 | . . . 3 Siege Activations . | . . . . Martial Activations . | . . . . Shielding Activations . | . . . . Robots Disrupted . | . . . . Combat Hostiles . | . . . . Robots Corrupted 1 | . . . 1 Combat Hostiles 1 | . . . 1 Parts Fried 3 | . . . 3 Impact Corruptions 1 | . . . 1 Robots Melted 1 | . 1 . . Combat Hostiles 1 | . 1 . . Parts Melted 5 | . 3 . 2 Heat Transferred 2163 | . 1347 50 766 Parts Sabotaged . | . . . . Parts Stolen . | . . . . Parts Stripped . | . . . . Power Chain Reactions . | . . . . Alert | -11 -10 -10 -8 ------- Run | Yrd Mat Sub Mat Maximum Alert Level . | . . . . Low Security (%) 100 | 100 100 . 100 Level 1 . | . . . . Level 2 . | . . . . Level 3 . | . . . . Level 4 . | . . . . Level 5 . | . . . . High Security . | . . . . Max Security . | . . . . Peak Influence 120 | . 120 . 119 Initial . | . . . . Average 23 | . 16 . 50 Influence Increases 785 | . 405 . 380 Destroy 0b10 Robot/C 420 | . 260 . 160 Destroy 0b10 Robot/NC 25 | . 20 . 5 Destroy Leader 94 | . 64 . 30 Trap Triggered on 0b10 10 | . . . 10 Successful Hack 38 | . 29 . 9 Disable Machine 30 | . . . 30 Destroy Structure 33 | . 2 . 31 Lose Combat Pursuer 135 | . 30 . 105 Influence Decreases 686 | . 330 75 281 Entered New Map 37 | . . 37 . Time Decay 399 | . 216 38 145 Lost Part 80 | . 10 . 70 Purge Threat 170 | . 104 . 66 Squads Dispatched 5 | . 2 . 3 Investigation 4 | . 2 . 2 Extermination . | . . . . Reinforcement 1 | . . . 1 Assault . | . . . . Garrison . | . . . . Intercept . | . . . . Searches Triggered . | . . . . Construction Impeded . | . . . . Haulers Reinforced . | . . . . Active Scanning Responses . | . . . . Cargo Convoy Interrupts . | . . . . Stealth | -11 -10 -10 -8 --------- Run | Yrd Mat Sub Mat Distress Signals 3 | . 2 . 1 Communications Jammed . | . . . . Distress Signals . | . . . . Times Spotted 57 | . 26 9 22 Peak Tracking Total 8 | . 3 2 8 Tactical Retreats 7 | . 2 1 4 Traps | -11 -10 -10 -8 ------- Run | Yrd Mat Sub Mat Traps Triggered 3 | . 1 1 1 Indirectly . | . . . . Trap Hack Attempts . | . . . . Triggered . | . . . . Disarmed . | . . . . Reprogrammed . | . . . . Reused 1 | . . . 1 Traps Extracted . | . . . . Installed 1 | . . . 1 Triggered 1 | . . . 1 Most Traps Carried 1 | . . 1 1 Machines | -11 -10 -10 -8 ---------- Run | Yrd Mat Sub Mat Machines Disabled 3 | . . 1 2 Max in Single Turn 1 | . . 1 1 Machines Repaired . | . . . . Machines Dismantled . | . . . . Machines Sabotaged . | . . . . Overloaded Fab Kills . | . . . . Hacking | -11 -10 -10 -8 --------- Run | Yrd Mat Sub Mat Machines Accessed 16 | . 9 2 5 Terminals 10 | . 7 . 3 Fabricators . | . . . . Repair Stations . | . . . . Recycling Units 3 | . 2 . 1 Scanalyzers 1 | . . . 1 Garrison Access . | . . . . Total Hacks 45 | . 17 11 17 Successful 32 | . 11 11 10 Failed 12 | . 6 . 6 Catastrophic 4 | . 4 . . Database Lockouts 1 | . . . 1 Manual . | . . . . Terminals 24 | . 15 . 9 Fabricators . | . . . . Repair Stations . | . . . . Recycling Units 3 | . 2 . 1 Scanalyzers 7 | . . . 7 Garrison Access . | . . . . Terminal Hacks 24 | . 9 11 4 Record 11 | . . 10 1 Prototype ID Bank 4 | . 3 . 1 Branch Access Points 1 | . 1 . . Emergency Access Points 1 | . 1 . . Unreport Threat 2 | . 1 . 1 Maintenance Status 1 | . 1 . . Recall Investigation 1 | . . . 1 Recall Reinforcements 1 | . 1 . . Zone Layout 1 | . 1 . . Proto ID Catalog 1 | . . 1 . Fabricator Hacks . | . . . . Repair Station Hacks . | . . . . Recycling Unit Hacks 3 | . 2 . 1 Report Inventory 3 | . 2 . 1 Scanalyzer 5 | . . . 5 Insert Component 2 | . . . 2 Analyze 1 | . . . 1 Retrieve Study 2 | . . . 2 Garrison Access Hacks . | . . . . Unauthorized Hacks . | . . . . Terminals . | . . . . Fabricators . | . . . . Repair Stations . | . . . . Recycling Units . | . . . . Scanalyzers . | . . . . Garrison Access . | . . . . Data Cores Recovered 1 | . 1 . . Used . | . . . . Hacking Detections 10 | . 6 . 4 Full Trace Events 2 | . 1 . 1 Feedback Events . | . . . . Feedback Blocked . | . . . . Robot Schematics Acquired . | . . . . Robots Built . | . . . . Authchips . | . . . . Time . | . . . . Total Robot Build Rating . | . . . . Part Schematics Acquired 1 | . . . 1 Parts Built . | . . . . Authchips . | . . . . Time . | . . . . Total Part Build Rating . | . . . . Part Studies Acquired 2 | . . . 2 Parts Repaired . | . . . . Time . | . . . . Parts Recycled . | . . . . Recycled Matter . | . . . . Retrieved Matter . | . . . . Retrieved Components . | . . . . Parts Scanalyzed 1 | . . . 1 Part Schematics Acquired 1 | . . . 1 Parts Damaged . | . . . . Bothacking | -11 -10 -10 -8 ------------ Run | Yrd Mat Sub Mat Used RIF Installer . | . . . . Robots Hacked . | . . . . Non-combat . | . . . . Combat . | . . . . Robot Hacks Applied . | . . . . Relay Couplers Released . | . . . . Fabnet Peak Effective % . | . . . . Robots Rewired . | . . . . Allies Hacked . | . . . . Hacks Repelled . | . . . . Allies | -11 -10 -10 -8 -------- Run | Yrd Mat Sub Mat Total Allies . | . . . . Largest Group . | . . . . Highest-Rated Group . | . . . . Highest-Rated Ally . | . . . . Total Orders . | . . . . Ally Attacks . | . . . . Total Damage . | . . . . Kills . | . . . . Allies Corrupted . | . . . . Allies Melted . | . . . . Intel | -11 -10 -10 -8 ------- Run | Yrd Mat Sub Mat Active Infowar (turns) . | . . . . Robot Analysis Total . | . . . . Derelict Logs Recovered . | . . . . Drone Launches . | . . . . Drone Recoveries . | . . . . Exploration | -11 -10 -10 -8 ------------- Run | Yrd Mat Sub Mat Turns Passed 2785 | 81 1343 909 452 Spaces Moved 1980 | 47 731 893 309 Core 10 | 9 . . 1 Treads 669 | 38 631 . . Legs . | . . . . Wheels 1301 | . 100 893 308 Hover . | . . . . Flight . | . . . . Fastest Speed 50 | 50 80 80 90 Average Speed 111 | 138 149 83 99 Slowest Speed 400 | 160 160 95 400 Overloaded Moves . | . . . . Propulsion Burnouts . | . . . . Robots Hopped . | . . . . Potential Cave-ins . | . . . . Cave-ins Triggered . | . . . . Exploration Rate (%) 41 | 3 80 57 26 Regions Visited 3 Branch Regions 1 Pre-discovered Areas 1 | . . 1 . Known Exits Taken . | . . . . Unknown Exits Taken 3 | 1 1 1 . Scrap Searched 3 | . . 3 . Spaces Dug . | . . . . Terrain Destroyed 42 | . 1 . 41 Melee . | . . . . Projectile 1 | . 1 . . AOE 41 | . . . 41 Terrain Rammed . | . . . . Walls Destroyed . | . . . . Machines Disabled . | . . . . Actions | -11 -10 -10 -8 --------- Run | Yrd Mat Sub Mat Total 2314 | 63 889 966 396 Wait 120 | 2 82 20 16 Move 1977 | 46 730 892 309 Hop . | . . . . Pick Up 38 | 9 13 6 10 Fast Attach 1 | . . . 1 Attach 21 | 6 5 3 7 Detach 1 | . 1 . . Swap 16 | . 5 6 5 Drop 16 | . 4 4 8 Fire 109 | . 48 35 26 Melee 13 | . . . 13 Ram . | . . . . Kick . | . . . . Crush 1 | . 1 . . Escape Stasis . | . . . . Rewire . | . . . . Trap 1 | . . . 1 Miscellaneous . | . . . . Route ------- -11/Scrapyard -10/Materials (discovered 4 exits: [*Mat x2] / *Min / *Sub) -10/Subcaves -8/Materials (discovered 1 exit: [*Fac]) History --------- Turn | Location | Event 4 | -11/Scrapyard | Discovered new exit (range 16) 82 | -11/Scrapyard | Entered Materials 309 | -10/Materials | Build established: Mutant 515 | -10/Materials | Discovered new exit (range 13) 632 | -10/Materials | Lost 3 parts (1p1n1w) 777 | -10/Materials | Identified exit to Mines 832 | -10/Materials | Discovered new exit (range 6) 1384 | -10/Materials | Discovered new exit (range 15) 1424 | -10/Materials | Discovered new exit (range 4) 1425 | -10/Materials | Entered Subcaves 1426 | -10/Subcaves | Approached by a straggling Scientist 1522 | -10/Subcaves | A swath of the cavern ceiling suddenly collapsed 1572 | -10/Subcaves | Ambushed by Subdwellers from Twisted Machinery 1595 | -10/Subcaves | Core integrity fell below 50% 1655 | -10/Subcaves | Shifting Twisted Machinery released Sub. Monowheel 1847 | -10/Subcaves | Visited Clippyterm 1849 | -10/Subcaves | Learned location of Section 7 (-2) 2080 | -10/Subcaves | Visited 4L-MR0's lab 2084 | -10/Subcaves | Found Prototype Device 2090 | -10/Subcaves | Found Power Bank 2161 | -10/Subcaves | Disturbed a concealed Subdweller 2260 | -10/Subcaves | Discovered new exit (range 16) 2334 | -10/Subcaves | Entered Materials 2334 | -8/Materials | Evolved 4 slots: Power x1, Propulsion x1, Utility x2 2334 | -8/Materials | Identified Sfc. Transmogrifier 2434 | -8/Materials | System corruption reached 10% 2555 | -8/Materials | Central database locked down 2590 | -8/Materials | Discovered new exit (range 4) 2775 | -8/Materials | Core integrity fell below 50% 2785 | -8/Materials | Core integrity fell below 20% 2786 | -8/Materials | Destroyed by G-47 Trooper with Particle Gun Last Messages --------------- 02764_ Heat Sink destroyed. 02765_ System corrupted: Component data lost. 02766_ Critical hit (Burn: +37). 02766_ Discarded Pulse Rifle. 02768_ U-05 Engineer lays Concrete. 02770_ Enh. Nuclear Core destroyed. 02770_ G-50 Soldier destroyed. 02773_ G-47 Trooper suffers critical hit (Smash). 02773_ Destroyed Aluminum Leg. 02773_ G-47 Trooper system corrupted by crushing effect. 02774_ G-47 Trooper system terminally corrupted. 02774_ Particle Gun fried. 02774_ Wheel destroyed. 02776_ Critical hit (Burn: +37). 02780_ K-01 Serf collects debris. 02782_ Prc. Beam Rifle destroyed. 02782_ Acquired 63 matter. 02783_ K-01 Serf collects debris. Map ----- +----------------------------------------------------+ | ?????????????????????????????????????????????????? | | ?????????????????????????????????????????????????? | | ?????????????????????????????????????????????????? | | ?????????????????????????????????????????????????? | | ?????????????????????????????????????????????????? | | ?????????????????????????????????????????????????? | | ?????????????????????????????????????????????????? | | ?????????????????????????????????????????????????? | | ?????????????????????????????????????????????????? | | ?????????????????????????????????????????????????? | | ?????????????????????????????????????????????????? | | ????????????????????? ??????????????????????????? | | ????????????????????# ??????????????????????????? | | ????????????????????# ?????????????????????????? | | ????????????????????# ?????????????????????????? | | ????????????????????# ""?? "????????????????????? | | ????????????????????# """ "????????????????????? | | ###?????????????????# """ ?????????????????????? | | #?????????????????# ??????????????????????? | | T #?????????????????# ???????????????????????? | | #?????????????????# ????????????????????????? | | #?????????????????+ ##########???????????????? | | #?????????????????# # ! u #???????????????? | | #?????????????????# # #???????????????? | | ##################### #=kg #???????????????? | | #@ g #???????????????? | | = !g%gg #???????????????? | | ! g#gg ]#???????????????? | | ### ########### # ==! #???????????????? | | #?# #?????????# #! =!! #???????????????? | | #?#! !#?????????# # =! #???????????????? | | #?##!! !##?????????# ##########???????????????? | | #??######??????????# #????????????????????????? | | ###????????????????# #????????????????????????? | | =# #????????????????# #????????????????????????? | | # #????????????????# #????????????????????????? | | # #????????????????# #????????????????????????? | | # #????????????????# #????????????????????????? | | # ##???????????????# #????????????????????????? | | # #???????????????# #????????????????????????? | | #"##########???????# #????????????????????????? | | #" #???????# #????????????????????????? | | ## "S = #???????? ?????????????????????????? | | ## """ #????????????????????????????????????? | | ## "" #????????????????????????????????????? | | ## #????????????????????????????????????? | | # """ #????????????????????????????????????? | | / """ #????????????????????????????????????? | | # """ #????????????????????????????????????? | | ################???????????????????????????????? | +----------------------------------------------------+ Best States ------------- Heat Dissipation 41 Energy Generation 23 Energy Capacity 325 Matter Stores 300 Matter Capacity 300 Sight Range 16 Terrain Scan Density 10 Base Temperature (-) 100 Armor Coverage 150 Evasion (%) 44 Targeting Accuracy 6 Recoil Reduction 2 Item Schematics ----------------- Hacking Suite | -8/Materials | Scanalyzed Robot Schematics ------------------ None Fabricated ------------ Nothing Repaired ---------- Nothing Studied --------- Lgt. EM Pulse Cannon | -8/Materials | Hacked Lgt. Ion Engine | -8/Materials | Hacked Alien Tech Used ----------------- None Achievements -------------- Mistaken Identity Challenges ------------ None Game ------ Seed TerrorFlightSpear Manual? 0 Play Time 00:30:21 Cumulative 29.6 hours Start 2026.08.24 @ 12:10:45 End 2026.08.24 @ 12:42:11 Sessions 1 Manual Loads 0 Difficulty Rogue Special Mode None Game No. 44 Rogue 44 Adventurer 0 Explorer 0 Win Type - Total 0 Types 0/0/0/0/0/0/0/0/0/0 Lore% 17 Gallery% 20 Achievement% 18 Wizard Run 0 Options --------- Layout 1 ASCII 0 Keyboard 0 Movement Mouse Keybinds 0 Fullscreen 1 Font 16/SmallcapsGlow Map View 50x40 Zoom Use 0% Tactical HUD 1 Map Filters NONE Filters NONE Steam SD RUN: ff752ec7-c0ac-49f6-bf61-9578269adc04